Workbook

Sheet Sheet1
B1: Lecture 3D. Mini-Case PVC
B2: PVC Pipe Plant
E4: 1987 | G4: 1988 | H4: 1989
B7: Sales in $ | E7: 7640000
J8: 4 crews
B9: Cost of Goods Sold | J9: Each crew 42 hours/week (no OT)
B10: Material | E10: =0.75*E7 -> 5730000 | J10: 15 direct labor employees/crew
B11: Labor | E11: =+K19 -> 1532000.4 | J11: Direct labor hours/week/crew | K11: =15*42 -> 630
B12: Overhead | E12: =+((153000*1.32)+0.05*E7)*1.33 -> 776666.8 | J12: Direct labor hourly rate $8 | K12: 8
B13: Total COGS | E13: =SUM(E10:E12) -> 8038667.2 | J13: Total direct labor hours/week | K13: =4*K11 -> 2520
J14: Direct labor cost/week total | K14: =+K13*K12 -> 20160
B15: Gross Margin | E15: =+E7-E13 -> -398667.2 | J15: $20,160 * 52 weeks = | K15: =8*2520*52 -> 1048320
B16: % of Sales | E16: =+E15/E7 -> -0.05218157068 | J16: Fringe benefits @ 32%
J17: Total labor with fringe | K17: =1.32*K15 -> 1383782.4
B18: Expenses | J18: Unabsorbed OH due to line changes | K18: 148218
B19: Corporate Salaries & Travel | E19: 168000 | J19: total Labor for All Operations | K19: =+K18+K17 -> 1532000.4
B20: Selling Expense | E20: =+(50000+40000+40000)*1.32 -> 171600
A21: R & D | B21: Accounting Department | E21: =+(73000)*1.32 -> 96360
B22: Other Corporate Expenses | E22: 345000
B23: Total Expenses | E23: =SUM(E19:E22) -> 780960
B24: % of Sales | E24: =+E23/E7 -> 0.1022198953
B26: Operating Income | E26: =+E15-E23 -> -1179627.2
B27: % Operating Income | E27: =+E26/E7 -> -0.154401466
E36: 1987 | G36: 1988 | H36: 1989
B37: Balance Sheet | F37: Ratios
B38: Assets | F38: Turns
B39: Cash | E39: =+E78 -> -8394680.319
B40: Accounts Receivable | E40: =+(E7/365)*F40 -> 1758246.575 | F40: 84
B41: Inventory | E41: =+E13/F41 -> 6183590.154 | F41: 1.3
B42: Current Assets | E42: =+SUM(E39:E41) -> -452843.5901
B44: Fixed Assets (machinery) | E44: 0 | F44: 0
B45: Accumulated Depreciation | E45: 0
B47: Total Assets | E47: =+E44+E42+E45 -> -452843.5901
B49: Liabilities
B50: Accounts Payable | E50: =+(E13/365)*F50 -> 726783.6099 | F50: 33
B51: Current Liabilities | E51: =SUM(E50) -> 726783.6099
B53: Loan @ 12% interest | E53: =+C53 -> 0
B55: Equity
B56: Paid in Capital | E56: 0
B57: Current Earnings | E57: =+E26 -> -1179627.2
B58: Retained Earnings Prior | E58: 0
B59: Less Dividends | E59: 0
B60: Total Equity | E60: =SUM(E56:E59) -> -1179627.2
B62: Total Liabililty & Equity | E62: =+E60+E53+E51 -> -452843.5901
B64: Cash Flow
D65: 1986 | E65: 1987 | G65: 1988 | H65: 1989
B66: =+B44 -> Fixed Assets (machinery) | D66: 0 | E66: 0
B67: =+B50 -> Accounts Payable | D67: =+C50 -> 0 | E67: =+E50-C50 -> 726783.6099
B68: Dividends | D68: =+C59 -> 0 | E68: =+E59 -> 0
B69: Net Income | D69: =+C33 -> 0 | E69: =+E26 -> -1179627.2
B71: Depreciation | E71: =+E30 -> 0
B72: =+B40 -> Accounts Receivable | D72: =+C40 -> 0 | E72: =+C40-E40 -> -1758246.575
B73: =+B41 -> Inventory | D73: =+C41 -> 0 | E73: =+C41-E41 -> -6183590.154
B74: Cash Flow from Operations | D74: =+D73+D72+D69+D68+D67+D66 -> 0 | E74: =+E73+E72+E69+E68+E67+E66 -> -8394680.319
B76: Paid in Capital | D76: 0 | E76: =+E56 -> 0
B77: Loan | D77: =+C53 -> 0 | E77: =+E53 -> 0
B78: Cash Balance | D78: 0 | E78: =+E77+E76+E74+D78 -> -8394680.319

Sheet Sheet2

Sheet Sheet3
